Cogmind - Beta 16 @@@ ROGUE MODE // 2025.11.21 @ 16:46:15 Player: the Result: Destroyed by GY-V9Q(R) with Subdweller Laser Performance ------------- Evolutions (0) 0 Regions Visited (2) 400 Robots Destroyed (41) 205 Value Destroyed (1042) 1042 Prototype IDs (2) 40 Alien Tech Used (0) 0 Bonus (0) 0 TOTAL SCORE: 1687 Bonus ------- None Cogmind --------- Core Integrity 0/250 Matter 256/300 Energy 130/200 System Corruption 1% Temperature Cool (83) Movement Rolling (120) Ox1 Location -10/Subcaves Parts ------- > --- POWER (1) -------- Subdweller Power Source > --- PROPULSION (2) --- Subdweller Monowheel Subdweller Monowheel > --- UTILITY (2) ------ High-capacity Storage Unit Hardened Light Armor Plating > --- WEAPON (2) ------- Subdweller Beam Cannon Subdweller Beam Cannon > --- INVENTORY (20) --- Spiked Treads Flightbrick Disposable Heat Sink Huge Storage Unit Seismic Detector Hardened Light Armor Plating Scrap Shield Subdweller Machine Gun Subdweller Machine Gun Barrage Gun Barrage Gun Barrage Gun Rocket Launcher Mini Grenade Launcher Datajack Makeshift Sword Peak State ------------ > --- POWER ------------ Subdweller Power Source > --- PROPULSION ------- Subdweller Monowheel Subdweller Monowheel > --- UTILITY ---------- High-capacity Storage Unit Hardened Light Armor Plating > --- WEAPON ----------- Barrage Gun Barrage Gun > --- INVENTORY -------- Subdweller Power Source Subdweller Monowheel Flightbrick Disposable Heat Sink Huge Storage Unit Seismic Detector Hardened Light Armor Plating Scrap Shield Subdweller Laser Subdweller Beam Cannon Subdweller Beam Cannon Subdweller Machine Gun Subdweller Machine Gun Rocket Launcher Mini Grenade Launcher Datajack [Rating: 21] Favorites ----------- Power Ion Engine Engine Ion Engine Propulsion Light Treads Treads Light Treads Leg Aluminum Leg Wheel Subdweller Monowheel Utility High-capacity Storage Unit Device Seismic Detector Storage High-capacity Storage Unit Protection Hardened Light Armor Plating Weapon Subdweller Beam Cannon Energy Gun Heavy EM Pulse Gun Energy Cannon Subdweller Beam Cannon Ballistic Gun Assault Rifle Launcher Rocket Launcher Special Weapon Mining Laser Special Melee Weapon Datajack Build | -11 -10 -10 ------- Run | Yrd Mat Sub Slots Evolved . | . . . Power . | . . . Propulsion . | . . . Utility . | . . . Weapon . | . . . Parts Attached 44 | 8 16 20 Power 6 | 1 2 3 Engine 6 | 1 2 3 Core . | . . . Reactor . | . . . Propulsion 11 | 2 3 6 Treads 3 | . 2 1 Leg 3 | 2 1 . Wheel 5 | . . 5 Hover . | . . . Flight . | . . . Utility 10 | 3 4 3 Device 3 | 2 1 . Storage 4 | 1 2 1 Processor . | . . . Hackware . | . . . Protection 3 | . 1 2 Artifact . | . . . Weapon 17 | 2 7 8 Energy Gun 2 | . 2 . Energy Cannon 4 | . . 4 Ballistic Gun 8 | 2 2 4 Ballistic Cannon . | . . . Launcher 1 | . 1 . Special Weapon 1 | . 1 . Impact Weapon . | . . . Slashing Weapon . | . . . Piercing Weapon . | . . . Special Melee Weapon 1 | . 1 . Unidentified Prototypes . | . . . Parts Lost 6 | . . 6 Power 2 | . . 2 Propulsion 2 | . . 2 Utility . | . . . Weapon 2 | . . 2 Highest Loss Streak 2 | . . 2 To Critical Strikes . | . . . Average Backups 14 | 4 14 15 Power . | . . . Propulsion 1 | 1 . 1 Utility 5 | 1 6 5 Weapon 6 | 1 6 6 Tool/Special . | . . . Unused Backups 26 | . 7 19 Power 1 | . . 1 Propulsion 3 | . . 3 Utility 6 | . 1 5 Weapon 16 | . 6 10 Tool/Special . | . . . Average Slot Usage (%) 99 | . 99 99 Engine 13 | . 14 13 Treads 15 | . 26 11 Wheel 12 | . . 16 Device 10 | . 10 10 Storage 14 | . 14 14 Protection 3 | . 3 3 Energy Gun 1 | . 5 . Energy Cannon 14 | . . 19 Ballistic Gun 9 | . 21 5 Special Weapon 2 | . . 2 Peak Build Rating 21 | 7 11 21 Average Rating 14 | 4 9 16 On Entrance 5 | . 7 9 Avg Prop Armor Cover (%) 16 | 18 . 11 Naked Turns . | . . . Heaviest Build 90 | 12 54 90 Greatest Support 40 | 20 40 40 Greatest Overweight (x) 2 | . 1 2 Average Overweight (x) . | . . 1 Largest Inventory Capacity 25 | 8 20 25 Average Capacity 18 | 6 15 20 Most Carried 21 | 6 18 21 Average Carried 17 | 4 14 19 Final Capacity 20 | 8 20 20 Final Carried 20 | 6 18 20 Class Distribution -------------------- 58% | Mutant 41% | Scavenger-Mutant Dominant Class ---------------- Mutant | -10/Materials Scavenger-Mutant | -10/Subcaves Resources | -11 -10 -10 ----------- Run | Yrd Mat Sub Matter Collected 1398 | 344 325 729 Remotely . | . . . Salvage Created 1456 | 184 432 840 Parts 101 | 12 31 58 Haulers Intercepted 2 | . 2 . Recyclers Shooed 3 | 1 2 . Parts Field Recycled . | . . . Retrieved Matter . | . . . Parts Self-Destructed 16 | . . 16 Prevented . | . . . Parts Restored . | . . . Kills | -11 -10 -10 ------- Run | Yrd Mat Sub Combat Hostiles Destroyed 27 | . 8 19 Guns 12 | . 5 7 Cannons 12 | . . 12 AOE 3 | . 3 . Classes Destroyed 8 | 2 5 1 Builder 1 | . 1 . Tunneler 6 | 5 1 . Hauler 2 | . 2 . Recycler 2 | 1 1 . Watcher 3 | . 3 . Swarmer 6 | . 6 . Grunt 2 | . 2 . Subdweller 19 | . . 19 Best Kill Streak 6 | 6 3 3 Combat Bots Only 3 | . 3 3 Max Kills in Single Turn 2 | 1 1 2 Gunslinging . | . . . Exploded 1 | . 1 . Melee . | . . . Uniques/NPCs Destroyed . | . . . Combat | -11 -10 -10 -------- Run | Yrd Mat Sub Hostile Shots Fired 114 | . 40 74 Missed 23 | . 4 19 Hits 91 | . 36 55 Projectile 91 | . 36 55 AOE 7 | . . 7 Critical Strikes 3 | . . 3 Damage Taken 1839 | . 391 1448 Core 250 | . 37 213 Absorbed by Shields . | . . . Regen/Repaired (Parts) 90 | . 90 . Core Remaining (%) 100 | 100 . . Volleys Fired 131 | 16 39 76 Largest 2 | 2 2 2 Hottest 160 | 40 100 160 Shots Fired 241 | 32 72 137 Gun 166 | 32 66 68 Cannon 58 | . . 58 Launcher 3 | . 3 . Special 14 | . 3 11 Kinetic 140 | 32 40 68 Thermal 72 | . 3 69 Explosive 3 | . 3 . Electromagnetic 26 | . 26 . Robot Hit Streak 18 | 4 6 18 Robot Miss Streak 5 | 2 5 2 Penetration Max . | . . . Secondary Targets . | . . . Shots Hit Robots 151 | 17 34 100 Core Hits 61 | 8 19 34 Critical Kills 1 | . 1 . Critical Parts Destroyed 2 | . . 2 Critical Strikes 3 | . 1 2 Destroy 3 | . 1 2 Melee Attacks . | . . . Impact . | . . . Slashing . | . . . Piercing . | . . . Sneak Attacks . | . . . Combat Hostiles . | . . . Follow-up Attacks . | . . . Damage Inflicted 2905 | 175 919 1811 Guns 1504 | 175 590 739 Cannons 1072 | . . 1072 Explosions 321 | . 321 . Melee . | . . . Ramming 8 | . 8 . Kinetic 1203 | 175 289 739 Thermal 1141 | . 69 1072 Explosive 252 | . 252 . Electromagnetic 301 | . 301 . Impact . | . . . Slashing . | . . . Piercing . | . . . Highest Corruption 1 | . 1 1 Average Corruption 1 | . 1 1 Corruption Purged . | . . . Corruption Blocked . | . . . Effects 46 | . 5 41 Message Errors 16 | . . 16 Matter Fused 10 | . . 10 Heat Flow Errors 4 | . 1 3 Energy Discharges 9 | . 3 6 Data Loss (minor) 4 | . . 4 Data Loss (major) 2 | . . 2 Alerts 1 | . 1 . Overload Shots . | . . . Overflow Damage 4 | . 4 . Projectiles . | . . . Explosions 4 | . 4 . Melee . | . . . Knockbacks 1 | . 1 . Impact 1 | . 1 . Kinetic . | . . . Secondary . | . . . Self-Inflicted Damage 28 | . 28 . Shots 1 | . 1 . Rammed 1 | . 1 . Targets Rammed 2 | . 2 . Kicked . | . . . Crushed 1 | . 1 . Highest Temperature 334 | . 202 334 Average Temperature 78 | . 42 109 Received Heat Transfer 690 | . 114 576 Effects 1 | . . 1 Interference 1 | . . 1 Siege Activations . | . . . Martial Activations . | . . . Shielding Activations . | . . . Robots Disrupted . | . . . Combat Hostiles . | . . . Robots Corrupted . | . . . Combat Hostiles . | . . . Parts Fried 1 | . 1 . Impact Corruptions . | . . . Robots Melted . | . . . Combat Hostiles . | . . . Parts Melted 4 | . . 4 Heat Transferred 1654 | . 100 1554 Parts Sabotaged . | . . . Parts Stolen . | . . . Parts Stripped . | . . . Power Chain Reactions 2 | . 2 . Alert | -11 -10 -10 ------- Run | Yrd Mat Sub Maximum Alert Level . | . . . Low Security (%) 100 | 100 100 . Level 1 . | . . . Level 2 . | . . . Level 3 . | . . . Level 4 . | . . . Level 5 . | . . . High Security . | . . . Max Security . | . . . Peak Influence 196 | 15 196 . Initial . | . . . Average 30 | 3 33 . Influence Increases 410 | 30 380 . Destroy 0b10 Robot/C 160 | . 160 . Destroy 0b10 Robot/NC 70 | 30 40 . Destroy Leader 40 | . 40 . Successful Hack 48 | . 48 . Disable Machine 45 | . 45 . Destroy Structure 47 | . 47 . Influence Decreases 410 | 30 231 149 Entered New Map 73 | . . 73 Time Decay 317 | 30 231 56 Lost Part 20 | . . 20 Squads Dispatched . | . . . Investigation . | . . . Extermination . | . . . Reinforcement . | . . . Assault . | . . . Garrison . | . . . Intercept . | . . . Searches Triggered . | . . . Construction Impeded . | . . . Haulers Reinforced . | . . . Active Scanning Responses . | . . . Cargo Convoy Interrupts . | . . . Stealth | -11 -10 -10 --------- Run | Yrd Mat Sub Distress Signals . | . . . Communications Jammed . | . . . Distress Signals . | . . . Times Spotted 35 | . 15 20 Peak Tracking Total 4 | . 3 4 Tactical Retreats 1 | . . 1 Traps | -11 -10 -10 ------- Run | Yrd Mat Sub Traps Triggered 1 | . 1 . Indirectly . | . . . Trap Hack Attempts 34 | . 30 4 Triggered . | . . . Disarmed 1 | . . 1 Reprogrammed 5 | . 5 . Reused . | . . . Traps Extracted . | . . . Installed . | . . . Triggered . | . . . Machines | -11 -10 -10 ---------- Run | Yrd Mat Sub Machines Disabled 3 | . 3 . Max in Single Turn 2 | . 2 . Machines Repaired . | . . . Machines Dismantled . | . . . Machines Sabotaged . | . . . Overloaded Fab Kills . | . . . Hacking | -11 -10 -10 --------- Run | Yrd Mat Sub Machines Accessed 10 | . 10 . Terminals 8 | . 8 . Fabricators . | . . . Repair Stations 1 | . 1 . Recycling Units 1 | . 1 . Scanalyzers . | . . . Garrison Access . | . . . Total Hacks 38 | . 38 . Successful 24 | . 24 . Failed 14 | . 14 . Catastrophic . | . . . Database Lockouts . | . . . Manual 25 | . 25 . Terminals 31 | . 31 . Fabricators . | . . . Repair Stations 4 | . 4 . Recycling Units 3 | . 3 . Scanalyzers . | . . . Garrison Access . | . . . Terminal Hacks 8 | . 8 . Part Schematic 1 | . 1 . Robot Analysis 3 | . 3 . Prototype ID Bank 1 | . 1 . Locate Traps 2 | . 2 . Hauler Manifests 1 | . 1 . Fabricator Hacks . | . . . Repair Station Hacks 4 | . 4 . Scan Component 2 | . 2 . Repair 2 | . 2 . Recycling Unit Hacks 1 | . 1 . Retrieve Components 1 | . 1 . Scanalyzer . | . . . Garrison Access Hacks . | . . . Unauthorized Hacks 11 | . 11 . Terminals 10 | . 10 . Botnet 3 | . 3 . Operators 1 | . 1 . Skim 6 | . 6 . Fabricators . | . . . Repair Stations . | . . . Recycling Units 1 | . 1 . Recyclers 1 | . 1 . Scanalyzers . | . . . Garrison Access . | . . . Data Cores Recovered . | . . . Used . | . . . Hacking Detections 10 | . 10 . Full Trace Events . | . . . Feedback Events . | . . . Feedback Blocked . | . . . Robot Schematics Acquired . | . . . Robots Built . | . . . Authchips . | . . . Time . | . . . Total Robot Build Rating . | . . . Part Schematics Acquired 1 | . 1 . Parts Built . | . . . Authchips . | . . . Time . | . . . Total Part Build Rating . | . . . Part Studies Acquired . | . . . Parts Repaired 2 | . 2 . Time 52 | . 52 . Parts Recycled . | . . . Recycled Matter . | . . . Retrieved Matter . | . . . Retrieved Components 4 | . 4 . Parts Scanalyzed . | . . . Part Schematics Acquired . | . . . Parts Damaged . | . . . Bothacking | -11 -10 -10 ------------ Run | Yrd Mat Sub Used RIF Installer . | . . . Robots Hacked . | . . . Non-combat . | . . . Combat . | . . . Robot Hacks Applied . | . . . Relay Couplers Released . | . . . Fabnet Peak Effective % . | . . . Robots Rewired . | . . . Allies Hacked . | . . . Hacks Repelled . | . . . Allies | -11 -10 -10 -------- Run | Yrd Mat Sub Total Allies . | . . . Largest Group . | . . . Highest-Rated Group . | . . . Highest-Rated Ally . | . . . Total Orders . | . . . Ally Attacks . | . . . Total Damage . | . . . Kills . | . . . Allies Corrupted . | . . . Allies Melted . | . . . Intel | -11 -10 -10 ------- Run | Yrd Mat Sub Active Infowar (turns) 5080 | 36 1291 3753 Seismic 5080 | 36 1291 3753 Robot Analysis Total 3 | . 3 . Derelict Logs Recovered 1 | . . 1 Drone Launches . | . . . Drone Recoveries . | . . . Exploration | -11 -10 -10 ------------- Run | Yrd Mat Sub Turns Passed 6615 | 137 1666 4812 Spaces Moved 2399 | 83 797 1519 Core 39 | 39 . . Treads 1492 | . 760 732 Legs 81 | 44 37 . Wheels 787 | . . 787 Hover . | . . . Flight . | . . . Fastest Speed 50 | 50 120 120 Average Speed 173 | 87 173 178 Slowest Speed 320 | 120 240 320 Overloaded Moves . | . . . Propulsion Burnouts . | . . . Robots Hopped . | . . . Potential Cave-ins . | . . . Cave-ins Triggered . | . . . Exploration Rate (%) 59 | 4 97 78 Regions Visited 2 Branch Regions 1 Pre-discovered Areas 5 | . 4 1 Known Exits Taken . | . . . Unknown Exits Taken 2 | 1 1 . Scrap Searched 4 | . . 4 Spaces Dug 16 | . 16 . Terrain Destroyed 53 | . 50 3 Melee . | . . . Projectile 6 | . 3 3 AOE 47 | . 47 . Terrain Rammed . | . . . Walls Destroyed . | . . . Machines Disabled . | . . . Actions | -11 -10 -10 --------- Run | Yrd Mat Sub Total 4593 | 117 1010 3466 Wait 1846 | . 69 1777 Move 2397 | 82 796 1519 Hop . | . . . Pick Up 59 | 9 29 21 Fast Attach 9 | 5 1 3 Attach 18 | 3 4 11 Detach 2 | 1 1 . Swap 51 | . 20 31 Drop 44 | 1 19 24 Fire 131 | 16 39 76 Melee . | . . . Ram . | . . . Kick . | . . . Crush 2 | . 2 . Escape Stasis . | . . . Rewire . | . . . Trap 34 | . 30 4 Miscellaneous . | . . . Route ------- -11/Scrapyard -10/Materials (discovered 6 exits: [*Mat x3] / [*Min x2] / [*Sub]) -10/Subcaves (discovered 2 exits: [*Mat x2]) History --------- Turn | Location | Event 9 | -11/Scrapyard | Discovered new exit (range 16) 138 | -11/Scrapyard | Entered Materials 314 | -10/Materials | Build established: Mutant 472 | -10/Materials | Discovered new exit (range 12) 637 | -10/Materials | Discovered new exit (range 13) 723 | -10/Materials | Discovered new exit (range 15) 908 | -10/Materials | Discovered new exit (range 16) 991 | -10/Materials | Learned location of Recycling (-7) 1042 | -10/Materials | Discovered new exit (range 10) 1048 | -10/Materials | Loaded intel: 19 trap records 1128 | -10/Materials | Learned location of 1 exit from Storage 1156 | -10/Materials | Discovered new exit (range 10) 1163 | -10/Materials | Learned Storage machine intel 1195 | -10/Materials | Learned location of 2 exits from Materials 1294 | -10/Materials | Repaired Assault Rifle 1325 | -10/Materials | Repaired Assault Rifle 1804 | -10/Materials | Entered Subcaves 1805 | -10/Subcaves | Approached by a straggling Scientist 1834 | -10/Subcaves | A Subdweller sparked back to life 1834 | -10/Subcaves | A Subdweller sparked back to life 1834 | -10/Subcaves | A Subdweller sparked back to life 1878 | -10/Subcaves | Found Prototype Flight Unit 2366 | -10/Subcaves | Ambushed by Subdweller buried in earth 2631 | -10/Subcaves | Shifting Twisted Machinery released Piercing Trap 2879 | -10/Subcaves | Shifting Twisted Machinery released Sub. Optics 2993 | -10/Subcaves | A swath of the cavern ceiling suddenly collapsed 3918 | -10/Subcaves | Shifting Twisted Machinery released Barrage Gun 4053 | -10/Subcaves | Disturbed a concealed Subdweller 4054 | -10/Subcaves | Core integrity fell below 50% 4142 | -10/Subcaves | Build established: Scavenger-Mutant 4218 | -10/Subcaves | Core integrity fell below 20% 4283 | -10/Subcaves | Learned location of Mines (-8) 4305 | -10/Subcaves | Discovered new exit (range 15) 4529 | -10/Subcaves | Shifting Twisted Machinery released Sub. Machine Gun 6521 | -10/Subcaves | Discovered new exit (range 8) 6616 | -10/Subcaves | Destroyed by GY-V9Q(R) with Subdweller Laser Last Messages --------------- 05150_ ST,3%UHBM#FH/XXSBQJ= 05200_ 5JV:1UFP 04B8AQX41CZJQF36PM5M6# 05221_ System corrupted: Component data lost. 05328_ System corrupted: Energy discharge (-64). 05468_ V:9AM =M#=% QXZS2|SQVLRCKKUP3<7 05712_ System corrupted: Matter fused (-5). 05819_ System corrupted: Matter fused (-7). 05876_ System corrupted: Energy discharge (-44). 06109_ IDKG0IJYCFD/L: CGTT 9&OMYPAHPYH 06147_ HS:WD/MCKB3ARGU%VZDT|4 06174_ System corrupted: Component data lost. 06203_ UML0UKXTNZRU&9NVRRYV% 06280_ Attempting to reprogram Piercing Trap. 06283_ Piercing Trap disarmed. 06415_ System corrupted: Matter fused (-7). 06495_ Acquired Mak. Sword. 06521_ EXIT=FOUND 06539_ Acquired 28 matter. Map ----- +----------------------------------------------------+ | ?????????????????????????????????????????????????? | | ?????????????????????????????????????????????????? | | ?????????????????????????????????????????????????? | | ?????????????????????????????????????????????????? | | ?????????????????????????????????????????????????? | | ?????????????????????????????????????????????????? | | ?????????????????????????????????????????????????? | | ?????????????????????????????????????????????????? | | ?????????????????????????????????????????????????? | | ?????????????????????????????????????????????????? | | ?????????????????????????????????????????????????? | | ?????????????????????????????????????????????????? | | ?????????????????????????????????????????????????? | | ?????????????????????????????????????????????????? | | ?????????????????????????????????????????????????? | | ?????????????????????????????????????????????????? | | ????????????????????#####????????????????????????? | | ??????????????????##"$$$#????????????????????????? | | ??????????????????#& "#?????????????????????????? | | ??????????????????# ####?????????"???????????????? | | ?????????????????##< #???????"" ???????????????? | | ??#####?????????## ## ###??????"""???????????????? | | ??# ##???????## # ###????""##??????????????? | | ??# ##??????# R# ##???#""#??????????????? | | ### #??????# < ""#####"####????????????? | | # #??????## @ #"# " "##???????????? | | ?# ##??????### " ##??????????? | | ?## ##???????## ### #??????????? | | ??# #????????## #?## #?????##???? | | ??## #????????## #??### ### % %&##?? | | ???# #???????## #????## #??? ## & ?? | | ???# #???????# ##????# #??? #???# ?? | | ???# ####???## ####?????# ##? #?????? ## | | ???## ##??# #????????# # #??????? # | | ????## * #??## ##??????## #?###???% | | ?????## ##??# ######## ######^##?## # | | ??????# #???## # # ## # %########^^ ### # | | ??##### #????# # ##^ # | | ?## ### ###### ^ | | ## ## ## ## ### # # # ##### ## ^ ^## | | # ############## ####### ^^# ## | | # ## #??????## ###??##^ ^ | | # ##?????# ###### ^ # | | "" ### ##????# ## ## | | ##?#### ##?#### | | #####?# ### ## | | """" #?# ## # ## ## | | """ " #?## ######### # | | """ " """""#??# ##??##### # | | """ """""" ##??# ##???# # | +----------------------------------------------------+ Best States ------------- Heat Dissipation 25 Energy Generation 15 Energy Capacity 250 Matter Stores 300 Matter Capacity 300 Sight Range 16 Terrain Scan Density 10 Armor Coverage 150 Evasion (%) 55 Recoil Reduction 2 Authchip Count 1 Item Schematics ----------------- Hcp. Storage Unit | -10/Materials | Hacked Robot Schematics ------------------ None Fabricated ------------ Nothing Repaired ---------- Assault Rifle | 37% | -10/Materials Assault Rifle | 73% | -10/Materials Studied --------- None Alien Tech Used ----------------- None Achievements -------------- None Challenges ------------ None Game ------ Seed ComponentVampiricCannon Manual? 0 Play Time 00:33:59 Cumulative 411.3 hours Start 2025.11.21 @ 16:16:38 End 2025.11.21 @ 16:46:15 Sessions 1 Manual Loads 0 Difficulty Rogue Special Mode None Game No. 267 Rogue 267 Adventurer 0 Explorer 0 Win Type - Total 6 Types 4/0/1/0/0/0/0/1/0/0 Lore% 82 Gallery% 80 Achievement% 53 Wizard Run 0 Options --------- Layout 1 ASCII 0 Keyboard 0 Movement Numpad Keybinds 0 Fullscreen 1 Font 24/Smallcaps Map View 50x40 Zoom Use 0% Tactical HUD 1 Map Filters NONE Filters NONE Steam 1 RUN: a7effb7b-324f-46b4-83f3-c060a01b907a